fUSD/lending_fUSD_20260301
["ID","MTS","AMOUNT","RATE_DAILY","PERIOD"]
[406973641,1772391040952,-250.0,0.00012683,2]
[406973643,1772391040961,-250.0,0.00012683,2]
[406973645,1772391040971,-644.79446246,0.00012683,2]
[406973646,1772391040981,-250.0,0.00012683,2]
[406973647,1772391040990,-250.0,0.00012683,2]
[406973649,1772391040999,-250.0,0.00012683,2]
[406973650,1772391041009,-250.0,0.00012683,2]
[406973651,1772391041018,-250.0,0.00012683,2]
[406973652,1772391041027,-250.0,0.00012683,2]
[406973653,1772391041037,-250.0,0.00012683,2]
[406973654,1772391041046,-250.0,0.00012683,2]
[406973656,1772391041055,-250.0,0.00012683,2]
[406973657,1772391041065,-250.0,0.00012683,2]
[406973658,1772391041075,-250.0,0.00012683,2]
[406973659,1772391041084,-250.0,0.00012683,2]
[406973660,1772391041094,-250.0,0.00012683,2]
[406973661,1772391041103,-250.0,0.00012683,2]
[406973662,1772391041112,-250.0,0.00012683,2]
[406973663,1772391041121,-250.0,0.00012683,2]
[406973664,1772391041130,-250.0,0.00012683,2]
[406973665,1772391041140,-250.0,0.00012683,2]
[406973666,1772391041149,-250.0,0.00012683,2]
[406973667,1772391041158,-250.0,0.00012683,2]
[406973668,1772391041167,-250.0,0.00012683,2]
[406973669,1772391041176,-151.0,0.00012683,2]
[406973670,1772391041186,-151.0,0.00012683,2]
[406973671,1772391041195,-743.50770149,0.00012683,2]
[406973672,1772391041204,-500.0,0.00012683,2]
[406973673,1772391041214,-500.0,0.00012683,2]
[406973674,1772391041224,-151.0,0.00012683,2]
[406973675,1772391041233,-500.0,0.00012683,2]
[406973676,1772391041243,-257.91778498,0.00012683,2]
[406973677,1772391041252,-500.0,0.00012683,2]
[406973678,1772391041262,-500.0,0.00012683,2]
[406973679,1772391041272,-500.0,0.00012683,2]
[406973680,1772391041281,-500.0,0.00012683,2]
[406973681,1772391041291,-500.0,0.00012683,2]
[406973682,1772391041300,-151.0,0.00012683,2]
[406973683,1772391041310,-500.0,0.00012683,2]
[406973684,1772391041319,-500.0,0.00012683,2]
[406973685,1772391041328,-151.0,0.00012683,2]
[406973686,1772391041337,-500.0,0.00012683,2]
[406973687,1772391041346,-151.0,0.00012683,2]
[406973688,1772391041356,-500.0,0.00012683,2]
[406973689,1772391041365,-151.0,0.00012683,2]
[406973690,1772391041375,-500.0,0.00012683,2]
[406973691,1772391041384,-151.0,0.00012683,2]
[406973692,1772391041394,-253.48474784,0.00012683,2]
[406973693,1772391041403,-151.0,0.00012683,2]
[406973694,1772391041413,-151.0,0.00012683,2]
[406973695,1772391041423,-151.0,0.00012683,2]
[406973696,1772391041432,-151.0,0.00012683,2]
[406973697,1772391041443,-151.0,0.00012683,2]
[406973698,1772391041452,-151.0,0.00012683,2]
[406973699,1772391041462,-500.0,0.00012683,2]
[406973700,1772391041471,-482.28228872,0.00012683,2]
[406973701,1772391041480,-500.0,0.00012683,2]
[406973702,1772391041489,-250.0,0.00012683,2]
[406973703,1772391041499,-500.0,0.00012683,2]
[406973704,1772391041508,-310.95952093,0.00012683,2]
[406973705,1772391041522,-500.0,0.00012683,2]
[406973706,1772391041531,-500.0,0.00012683,2]
[406973707,1772391041540,-500.0,0.00012683,2]
[406973708,1772391041551,-500.0,0.00012683,2]
[406973709,1772391041560,-500.0,0.00012683,2]
[406973710,1772391041570,-500.0,0.00012683,2]
[406973711,1772391041579,-500.0,0.00012683,2]
[406973712,1772391041591,-500.0,0.00012683,2]
[406973713,1772391041600,-500.0,0.00012683,2]
[406973714,1772391041612,-500.0,0.00012683,2]
[406973715,1772391041622,-269.917619,0.00012683,2]
[406973716,1772391041631,-1700.0,0.000127,4]
[406973717,1772391041640,-256.12,0.00012737,2]
[406973718,1772391041650,-668.65185757,0.00012738,2]
[406973719,1772391041659,-151.0,0.00012738,2]
[406973720,1772391041668,-420.0,0.00012755,2]
[406973721,1772391041678,-348.0,0.00012755,2]
[406973722,1772391041688,-1000.0,0.0001276,2]
[406973723,1772391041697,-183.99849236,0.0001276,2]
[406973724,1772391041707,-548.2623,0.0001276,2]
[406973725,1772391041717,-8714.84263579,0.0001276,2]
[406973726,1772391041728,-2500.0,0.0001276,2]
[406973727,1772391041738,-4411.45331065,0.0001276,2]
[406973728,1772391041747,-712.34553017,0.0001276,2]
[406973729,1772391041757,-1680.0,0.00012776,2]
[406973730,1772391041766,-693.3919763,0.00012793,2]
[406973731,1772391041775,-151.0,0.00012793,2]
[406973732,1772391041784,-2200.0,0.000128,4]
[406973733,1772391041794,-150.0,0.00012833,2]
[406973734,1772391041803,-719.04747942,0.00012848,2]
[406973735,1772391041813,-151.0,0.00012848,2]
[406973736,1772391041822,-19977.07004256,0.00012857,2]
[406973737,1772391041832,-159.282,0.00012859,2]
[406973738,1772391041842,-13098.7851347,0.0001286,2]
[406973739,1772391041851,-1373870.91945054,0.0001286,2]
[406973740,1772391041892,-332.475,0.0001286,2]
[406973741,1772391041903,-1714.722337,0.0001286,2]
[406973773,1772391043449,-721.27261901,0.0001286,2]
[406973785,1772391046892,554.9,6.153e-05,2]
[406973787,1772391047102,554.9,6.477e-05,2]
[406973788,1772391047309,554.9,6.801e-05,2]
[406973789,1772391047539,554.9,7.124e-05,2]
[406973790,1772391047754,554.9,7.448e-05,2]
[406973791,1772391047962,554.9,7.772e-05,2]
[406973792,1772391048161,554.9,8.096e-05,2]
[406973793,1772391048724,554.9,8.42e-05,2]
[406973794,1772391048956,554.9,8.744e-05,2]
[406973795,1772391049210,554.9,9.067e-05,2]
[406973796,1772391049415,554.9,9.391e-05,2]
[406973800,1772391707540,-230.0,9.715e-05,2]
[406973801,1772391707569,-554.9,9.715e-05,2]
[406973802,1772391707598,-554.9,0.00010039,2]
[406973803,1772391707626,-554.9,0.00010363,2]
[406973804,1772391707660,-554.9,0.00010687,2]
[406973805,1772391707692,-300.0,0.00010687,2]
[406973806,1772391707722,-250.0,0.00010687,2]
[406973807,1772391707755,-554.9,0.0001101,2]
[406973808,1772391707784,-575.26,0.00011254,2]
[406973809,1772391707815,-554.9,0.00011334,2]
[406973810,1772391707836,-230.0,0.00011507,2]
[406973811,1772391707850,-554.9,0.00011507,2]
[406973812,1772391707861,-554.9,0.00011507,2]
[406973813,1772391707878,-554.9,0.00011507,2]
[406973814,1772391707890,-429.97,0.00011507,2]
[406973815,1772391707901,-124.93,0.00011593,2]
[406973816,1772391707912,-75.07,0.00011593,2]
[406973817,1772391707923,-224.93,0.00011655,2]
[406973818,1772391707934,-75.07,0.00011655,2]
[406973819,1772391707944,-174.93,0.00011656,2]
[406973820,1772391707963,-554.9,0.00011656,2]
[406973821,1772391707974,-470.17,0.00011656,2]
[406973822,1772391707983,-105.09,0.00011657,2]
[406973823,1772391707996,-554.9,0.00011657,2]
[406973824,1772391708022,-630.69,0.00011657,2]
[406973825,1772391713656,-10000.01,0.00011657,2]
[406973831,1772392231306,-4000.0,0.00011493,2]
[406973832,1772392231316,-200.0,0.00011503,2]
[406973833,1772392231326,-1000.0,0.00011573,2]
[406973834,1772392231336,-1017.94,0.00011603,2]
[406973836,1772392231347,-1200.0,0.00011656,2]
[406973838,1772392231357,-7932.18,0.00011657,2]
[406973840,1772392231367,-554.9,0.00011658,2]
[406973842,1772392231377,-1029.68,0.00011658,2]
[406973844,1772392231386,-223.14,0.00011681,2]
[406973845,1772392231396,-4000.0,0.0001178,2]
[406973846,1772392231406,-500.0,0.00011791,2]
[406973847,1772392231416,-176.297923,0.00011828,2]
[406973848,1772392231425,-554.9,0.00011982,2]
[406973849,1772392231439,-4000.0,0.00012068,2]
[406973850,1772392231449,-554.9,0.00012306,2]
[406973851,1772392231459,-4000.0,0.00012355,2]
[406973852,1772392231468,-150.0,0.00012401,2]
[406973853,1772392231478,-17924.78435466,0.00012402,2]
[406973854,1772392231487,-325.58915868,0.00012402,2]
[406973855,1772392231498,-1146.99550729,0.00012402,2]
[406973856,1772392231508,-183.99849235,0.00012451,2]
[406973857,1772392231518,-544.0,0.00012466,2]
[406973858,1772392231528,-241.50191728,0.0001249,2]
[406973859,1772392231538,-200.0,0.00012493,2]
[406973860,1772392231547,-151.0,0.00012493,2]
[406973861,1772392231557,-151.0,0.00012493,2]
[406973862,1772392231567,-151.0,0.00012493,2]
[406973863,1772392231576,-151.0,0.00012493,2]
[406973864,1772392231586,-151.0,0.00012493,2]
[406973866,1772392231595,-151.0,0.00012493,2]
[406973868,1772392231605,-151.0,0.00012493,2]
[406973870,1772392231615,-151.0,0.00012493,2]
[406973871,1772392231624,-151.0,0.00012493,2]
[406973873,1772392231634,-151.0,0.00012493,2]
[406973874,1772392231643,-151.0,0.00012493,2]
[406973876,1772392231653,-151.0,0.00012497,2]
[406973878,1772392231663,-500.0,0.00012499,2]
[406973880,1772392231672,-368.12873525,0.00012499,2]
[406973882,1772392231683,-500.0,0.00012499,2]
[406973883,1772392231694,-199.03953551,0.00012499,2]
[406973884,1772392231705,-418.59596811,0.00012499,2]
[406973885,1772392231715,-11089.0,0.000125,2]
[406973886,1772392231725,-500.0,0.00012502,2]
[406973887,1772392231735,-578.20924308,0.00012502,2]
[406973888,1772392231744,-623.61301797,0.00012502,2]
[406973889,1772392231754,-500.0,0.00012502,2]
[406973890,1772392231764,-500.0,0.00012502,2]
[406973891,1772392231774,-500.0,0.00012502,2]
[406973892,1772392231784,-500.0,0.00012502,2]
[406973893,1772392231794,-500.0,0.00012502,2]
[406973894,1772392231804,-500.0,0.00012502,2]
[406973895,1772392231814,-500.0,0.00012502,2]
[406973896,1772392231823,-500.0,0.00012502,2]
[406973897,1772392231833,-500.0,0.00012502,2]
[406973898,1772392231842,-500.0,0.00012502,2]
[406973899,1772392231851,-500.0,0.00012502,2]
[406973900,1772392231861,-743.50770149,0.00012502,2]
[406973901,1772392231875,-500.0,0.00012502,2]
[406973902,1772392231885,-500.0,0.00012502,2]
[406973903,1772392231895,-500.0,0.00012502,2]
[406973904,1772392231906,-500.0,0.00012502,2]
[406973905,1772392231916,-174.61919141,0.00012502,2]
[406973906,1772392231926,-500.0,0.00012502,2]
[406973907,1772392231935,-250.0,0.00012502,2]
[406973908,1772392231947,-500.0,0.00012502,2]
[406973909,1772392231956,-644.79446246,0.00012502,2]
[406973910,1772392231966,-250.0,0.00012502,2]
[406973911,1772392231976,-500.0,0.00012502,2]
[406973912,1772392231990,-250.0,0.00012502,2]
[406973913,1772392232000,-500.0,0.00012502,2]
[406973914,1772392232010,-250.0,0.00012502,2]
[406973915,1772392232020,-500.0,0.00012502,2]
[406973916,1772392232030,-151.0,0.00012502,2]
[406973917,1772392232040,-250.0,0.00012502,2]
[406973918,1772392232049,-500.0,0.00012502,2]
[406973919,1772392232059,-151.0,0.00012502,2]
[406973920,1772392232069,-250.0,0.00012502,2]
[406973921,1772392232079,-500.0,0.00012502,2]
[406973922,1772392232090,-151.0,0.00012502,2]
[406973923,1772392232100,-250.0,0.00012502,2]
[406973924,1772392232109,-500.0,0.00012502,2]
[406973925,1772392232119,-151.0,0.00012502,2]
[406973926,1772392232129,-250.0,0.00012502,2]
[406973927,1772392232138,-500.0,0.00012502,2]
[406973928,1772392232148,-151.0,0.00012502,2]
[406973929,1772392232157,-250.0,0.00012502,2]
[406973930,1772392232167,-269.917619,0.00012502,2]
[406973931,1772392232176,-500.0,0.00012502,2]
[406973932,1772392232186,-151.0,0.00012502,2]
[406973933,1772392232196,-250.0,0.00012502,2]
[406973934,1772392232206,-500.0,0.00012502,2]
[406973935,1772392232216,-151.0,0.00012502,2]
[406973936,1772392232226,-250.0,0.00012502,2]
[406973937,1772392232235,-151.0,0.00012502,2]
[406973938,1772392232245,-250.0,0.00012502,2]
[406973939,1772392232254,-151.0,0.00012502,2]
[406973940,1772392232264,-250.0,0.00012502,2]
[406973941,1772392232274,-151.0,0.00012502,2]
[406973942,1772392232284,-151.0,0.00012502,2]
[406973943,1772392232294,-151.0,0.00012502,2]
[406973944,1772392232303,-250.0,0.00012502,2]
[406973945,1772392232313,-250.0,0.00012502,2]
[406973946,1772392232323,-151.0,0.00012502,2]
[406973947,1772392232333,-250.0,0.00012502,2]
[406973948,1772392232343,-250.0,0.00012502,2]
[406973949,1772392232352,-250.0,0.00012502,2]
[406973950,1772392232361,-271.3209308,0.00012502,2]
[406973951,1772392232375,-151.0,0.00012502,2]
[406973952,1772392232384,-257.91778498,0.00012502,2]
[406973953,1772392232394,-327.0,0.0001255,2]
[406973954,1772392232403,-668.65185757,0.00012557,2]
[406973955,1772392232413,-151.0,0.00012557,2]
[406973956,1772392232422,-1000.0,0.00012559,2]
[406973957,1772392232432,-400.0,0.000126,4]
[406973958,1772392232441,-693.3919763,0.00012612,2]
[406973959,1772392232451,-151.0,0.00012612,2]
[406973960,1772392232461,-4000.0,0.00012642,2]
[406973961,1772392232470,-195.0,0.00012653,2]
[406973962,1772392232480,-919.0374,0.00012653,2]
[406973963,1772392232490,-500.0,0.00012658,2]
[406973964,1772392232501,-474.89702012,0.00012666,2]
[406973965,1772392232510,-2940.96887376,0.00012666,2]
[406973966,1772392232520,-719.04747942,0.00012667,2]
[406973967,1772392232530,-151.0,0.00012667,2]
[406973968,1772392232540,-800.0,0.000127,4]
[406973969,1772392232550,-745.65223616,0.00012722,2]
[406973970,1772392232559,-151.0,0.00012722,2]
[406973971,1772392232569,-27835.35738822,0.0001274,2]
[406973972,1772392232589,-1085.84254698,0.0001274,2]
[406973973,1772392232601,-1707.18251586,0.0001274,2]
[406973974,1772392232614,-80289.11732769,0.0001274,2]
[406973975,1772392232623,-150.0,0.00012766,2]
[406973976,1772392232634,-150.0,0.00012766,2]
[406973977,1772392232644,-500.0,0.00012766,2]
[406973978,1772392232654,-161.1779493,0.00012766,2]
[406973979,1772392232663,-214.56343636,0.00012766,2]
[406973980,1772392232673,-500.0,0.00012766,2]
[406973981,1772392232683,-150.0,0.00012766,2]
[406973982,1772392232692,-500.0,0.00012766,2]
[406973983,1772392232702,-150.0,0.00012766,2]
[406973984,1772392232712,-500.0,0.00012766,2]
[406973985,1772392232726,-150.0,0.00012766,2]
[406973986,1772392232739,-150.0,0.00012766,2]
[406973987,1772392232749,-158.0707687,0.00012766,2]
[406973988,1772392232759,-291.88203118,0.00012766,2]
[406973989,1772392232768,-150.0,0.00012766,2]
[406973990,1772392232778,-150.0,0.00012766,2]
[406973991,1772392232788,-500.0,0.00012766,2]
[406973992,1772392232797,-150.0,0.00012766,2]
[406973993,1772392232807,-157.5868329,0.00012766,2]
[406973994,1772392232816,-186.40230494,0.00012766,2]
[406973995,1772392232827,-178.97913184,0.00012766,2]
[406973996,1772392232836,-150.0,0.00012766,2]
[406973997,1772392232846,-150.0,0.00012766,2]
[406973998,1772392232856,-500.0,0.00012766,2]
[406973999,1772392232866,-155.27024953,0.00012766,2]
[406974000,1772392232880,-150.0,0.00012766,2]
[406974001,1772392232890,-162.2713494,0.00012766,2]
[406974002,1772392232900,-150.0,0.00012766,2]
[406974003,1772392232911,-500.0,0.00012766,2]
[406974004,1772392232920,-500.0,0.00012766,2]
[406974005,1772392232930,-500.0,0.00012766,2]
[406974006,1772392232940,-150.0,0.00012766,2]
[406974007,1772392232955,-150.0,0.00012766,2]
[406974008,1772392232964,-500.0,0.00012766,2]
[406974009,1772392232974,-500.0,0.00012776,2]
[406974010,1772392232983,-773.2413689,0.00012777,2]
[406974011,1772392232993,-151.0,0.00012777,2]
[406974012,1772392233002,-1200.0,0.000128,4]
[406974013,1772392233168,-254.18129917,0.00012821,2]
[406974014,1772392233177,-150.0,0.00012821,2]
[406974015,1772392233186,-553.10721264,0.00012821,2]
[406974016,1772392233196,-500.0,0.00012821,2]
[406974017,1772392233206,-150.0,0.00012821,2]
[406974018,1772392233215,-500.0,0.00012821,2]
[406974019,1772392233225,-500.0,0.00012821,2]
[406974020,1772392233235,-150.0,0.00012821,2]
[406974021,1772392233244,-150.0,0.00012821,2]
[406974022,1772392233254,-150.0,0.00012821,2]
[406974023,1772392233263,-150.0,0.00012821,2]
[406974024,1772392233272,-600.0,0.00012821,2]
[406974025,1772392233281,-150.0,0.00012821,2]
[406974026,1772392233290,-150.0,0.00012821,2]
[406974027,1772392233300,-150.0,0.00012821,2]
[406974028,1772392233309,-500.0,0.00012821,2]
[406974029,1772392233318,-150.0,0.00012821,2]
[406974030,1772392233328,-150.0,0.00012821,2]
[406974031,1772392233337,-500.0,0.00012821,2]
[406974032,1772392233346,-600.0,0.00012821,2]
[406974033,1772392233356,-500.0,0.00012821,2]
[406974034,1772392233366,-615.94619115,0.00012821,2]
[406974035,1772392233375,-1233.0,0.00012822,2]
[406974036,1772392233385,-801.85129955,0.00012832,2]
[406974037,1772392233395,-151.0,0.00012832,2]
[406974038,1772392233404,-151.0,0.00012835,2]
[406974039,1772392233413,-56526.70782634,0.00012838,2]
[406974040,1772392233426,-7150.644345,0.00012838,2]
[406974041,1772392233437,-960.87056259,0.00012838,2]
[406974042,1772392233449,-273.719,0.00012838,2]
[406974043,1772392233467,-1037.25,0.00012838,2]
[406974044,1772392233479,-142677.00927954,0.00012838,2]
[406974045,1772392233490,-834.3403945,0.00012838,2]
[406974046,1772392233504,-20565.79701383,0.00012838,2]
[406974047,1772392237449,-3239.94984,0.00012838,2]
[406974048,1772392237463,-1553.52,0.00012838,2]
[406974049,1772392237502,-68938.33591995,0.00012838,2]
[406974050,1772392237608,-78337.74234234,0.00012838,2]
[406974051,1772392237622,-1159.41324796,0.00012838,2]
[406974052,1772392237634,-13129.22399004,0.00012838,2]
[406974053,1772392237716,-22856.24753351,0.00012838,2]
[406974054,1772392237727,-5026.9504576,0.00012838,2]
[406974055,1772392237737,-151.0,0.00012838,2]
[406974056,1772392237747,-151.0,0.00012838,2]
[406974057,1772392237757,-786.716127,0.00012838,2]
[406974058,1772392237767,-786.716127,0.00012838,2]
[406974060,1772392237776,-786.716127,0.00012838,2]
[406974061,1772392237786,-786.716127,0.00012838,2]
[406974064,1772392237796,-668.216594,0.00012838,2]
[406974066,1772392237807,-668.216594,0.00012838,2]
[406974067,1772392237816,-668.216594,0.00012838,2]
[406974069,1772392237826,-668.216594,0.00012838,2]
[406974072,1772392237836,-151.0,0.00012838,2]
[406974074,1772392237846,-151.0,0.00012838,2]
[406974076,1772392237856,-151.0,0.00012838,2]
[406974078,1772392237868,-1625.3616743,0.00012857,2]
[406974080,1772392237879,-3405.3421343,0.00012857,2]
[406974081,1772392237889,-200.0,0.0001286,2]
[406974083,1772392237898,-734.15114811,0.0001286,2]
[406974085,1772392237908,-200.0,0.0001286,2]
[406974087,1772392237919,-159.52436293,0.0001286,2]
[406974089,1772392237928,-200.0,0.0001286,2]
[406974092,1772392237938,-200.0,0.0001286,2]
[406974093,1772392237951,-200.0,0.00012876,2]
[406974095,1772392237960,-200.0,0.00012876,2]
[406974097,1772392237970,-500.0,0.00012876,2]
[406974099,1772392237980,-150.0,0.00012876,2]
[406974101,1772392237989,-150.0,0.00012876,2]
[406974103,1772392237998,-207.76379391,0.00012876,2]
[406974105,1772392238008,-150.0,0.00012876,2]
[406974107,1772392238018,-150.0,0.00012876,2]
[406974109,1772392238027,-279.76385006,0.00012876,2]
[406974111,1772392238036,-500.0,0.00012876,2]
[406974113,1772392238046,-152.83663743,0.00012876,2]
[406974115,1772392238056,-200.0,0.00012876,2]
[406974117,1772392238064,-500.0,0.00012876,2]
[406974119,1772392238074,-500.0,0.00012876,2]
[406974121,1772392238083,-831.51979763,0.00012887,2]
[406974123,1772392238092,-151.0,0.00012887,2]
[406974125,1772392238101,-1600.0,0.000129,4]
[406974127,1772392238111,-500.0,0.0001293,2]
[406974129,1772392238125,-150.0,0.0001293,2]
[406974131,1772392238135,-150.0,0.0001293,2]
[406974133,1772392238145,-150.0,0.0001293,2]
[406974135,1772392238155,-150.0,0.0001293,2]
[406974137,1772392238165,-500.0,0.0001293,2]
[406974139,1772392238175,-862.28603014,0.00012942,2]
[406974141,1772392238184,-151.0,0.00012942,2]
[406974143,1772392238193,-200.0,0.00012976,2]
[406974145,1772392238203,-500.0,0.00012985,2]
[406974147,1772392238214,-200.0,0.00012985,2]
[406974149,1772392238223,-200.0,0.00012985,2]
[406974151,1772392238233,-156.63969308,0.00012985,2]
[406974153,1772392238242,-150.0,0.00012985,2]
[406974155,1772392238252,-500.0,0.00012985,2]
[406974157,1772392238263,-200.0,0.00012989,2]
[406974159,1772392238272,-200.0,0.00012989,2]
[406974161,1772392238282,-200.0,0.00012989,2]
[406974163,1772392238291,-894.19061326,0.00012997,2]
[406974165,1772392238301,-151.0,0.00012997,2]
[406974167,1772392238311,-15229.69138975,0.00013013,2]
[406974198,1772392239709,-2695.09296488,0.00013013,2]
[406974199,1772392239720,-734.15114811,0.00013013,2]
[406974200,1772392239729,-151.0,0.00013013,2]
[406974201,1772392239739,-1000.0,0.0001302,2]
[406974202,1772392239749,-500.0,0.0001304,2]
[406974203,1772392239758,-250.0,0.0001304,2]
[406974204,1772392239768,-275.46692687,0.0001304,2]
[406974205,1772392239776,-200.0,0.00013041,2]
[406974206,1772392239786,-500.0,0.0001305,2]
[406974207,1772392239796,-771.01748645,0.0001305,2]
[406974208,1772392239806,-181.08010149,0.0001305,2]
[406974209,1772392239816,-279.9045709,0.0001305,2]
[406974210,1772392239825,-267.46074303,0.0001305,2]
[406974211,1772392239835,-700.0,0.00013051,2]
[406974212,1772392239844,-927.27566595,0.00013052,2]
[406974213,1772392239854,-151.0,0.00013052,2]
[406974214,1772392239864,-1000.0,0.0001306,2]
[406974215,1772392239878,-443.46717804,0.0001306,2]
[406974216,1772392239889,-500.0,0.00013095,2]
[406974217,1772392239899,-961.58486559,0.00013107,2]
[406974218,1772392239908,-151.0,0.00013107,2]
[406974219,1772392239920,-200.0,0.00013118,2]
[406974220,1772392239930,-403.80456618,0.0001315,2]
[406974221,1772392239939,-997.16350561,0.00013162,2]
[406974222,1772392239950,-151.0,0.00013162,2]
[406974223,1772392239960,-1146.99550728,0.00013187,2]
[406974224,1772392239970,-166.66,0.00013279,2]
[406974225,1772392239981,-155.0,0.00013288,2]
[406974226,1772392239990,-2000.0,0.000133,2]
[406974227,1772392240000,-2000.0,0.000133,2]
[406974228,1772392240010,-2000.0,0.000133,2]
[406974229,1772392240020,-2091.95941351,0.00013383,2]
[406974230,1772392240030,-2000.0,0.000134,2]
[406974231,1772392240040,-2000.0,0.000134,2]
[406974232,1772392240050,-2000.0,0.000134,2]
[406974233,1772392240060,-2000.0,0.000134,2]
[406974234,1772392240071,-256.12,0.00013408,2]
[406974235,1772392240082,-1512.0,0.00013423,2]
[406974236,1772392240096,-151.0,0.00013423,2]
[406974237,1772392240106,-1512.0,0.00013423,2]
[406974238,1772392240116,-1512.0,0.00013423,2]
[406974239,1772392240128,-151.0,0.00013423,2]
[406974240,1772392240140,-1512.0,0.00013423,2]
[406974241,1772392240149,-151.0,0.00013423,2]
[406974242,1772392240159,-1512.0,0.00013423,2]
[406974243,1772392240169,-151.0,0.00013423,2]
[406974244,1772392240179,-1512.0,0.00013423,2]
[406974245,1772392240190,-151.0,0.00013423,2]
[406974246,1772392240201,-1512.0,0.00013423,2]
[406974247,1772392240211,-1512.0,0.00013423,2]
[406974248,1772392240220,-151.0,0.00013423,2]
[406974249,1772392240230,-1512.0,0.00013423,2]
[406974250,1772392240240,-151.0,0.00013423,2]
[406974251,1772392240250,-1512.0,0.00013423,2]
[406974252,1772392240261,-151.0,0.00013423,2]
[406974253,1772392240271,-1512.0,0.00013423,2]
[406974254,1772392240281,-151.0,0.00013423,2]
[406974255,1772392240292,-1512.0,0.00013423,2]
[406974256,1772392240302,-151.0,0.00013423,2]
[406974257,1772392240312,-1512.0,0.00013423,2]
[406974258,1772392240476,-151.0,0.00013423,2]
[406974259,1772392240487,-1512.0,0.00013423,2]
[406974260,1772392240503,-151.0,0.00013423,2]
[406974261,1772392240513,-1512.0,0.00013423,2]
[406974262,1772392240523,-250.72418667,0.00013423,2]
[406974263,1772392240534,-1512.0,0.00013423,2]
[406974264,1772392240545,-1512.0,0.00013423,2]
[406974265,1772392240555,-1512.0,0.00013423,2]
[406974266,1772392240565,-1512.0,0.00013423,2]
[406974267,1772392240576,-1512.0,0.00013423,2]
[406974269,1772392240585,-1512.0,0.00013423,2]
[406974271,1772392240595,-1512.0,0.00013423,2]
[406974274,1772392240605,-1512.0,0.00013423,2]
[406974276,1772392240616,-946.22739329,0.00013423,2]
[406974278,1772392240625,-3240.0,0.00013425,2]
[406974280,1772392240635,-255.0,0.00013492,2]
[406974281,1772392240644,-1562.93658797,0.000135,2]
[406974282,1772392240653,-200.0,0.00013589,2]
[406974283,1772392240663,-799.54513345,0.00013598,2]
[406974284,1772392240673,-187.78006525,0.00013598,2]
[406974285,1772392240682,-306.30931978,0.00013598,2]
[406974286,1772392240692,-277.35679052,0.00013598,2]
[406974287,1772392240703,-717.79777813,0.00013598,2]
[406974288,1772392240714,-17924.78435463,0.00013624,2]
[406974289,1772392240724,-1600.0,0.00013632,2]
[406974290,1772392240735,-151.0,0.00013662,2]
[406974291,1772392240746,-151.0,0.00013662,2]
[406974292,1772392240758,-151.0,0.00013662,2]
[406974293,1772392240767,-6692.01571544,0.00013696,2]
[406974294,1772392240777,-500.0,0.00013698,2]
[406974295,1772392240787,-500.0,0.00013698,2]
[406974296,1772392240796,-500.0,0.00013698,2]
[406974297,1772392240806,-500.0,0.00013698,2]
[406974298,1772392240816,-500.0,0.00013698,2]
[406974299,1772392240826,-500.0,0.00013698,2]